Cogmind - Beta 10 @@@ ROGUE MODE // 2020.09.18 @ 15:32:53 Player: cavemonk Result: Destroyed by 8R-AWN with 8R-AWN's Boregun Performance ------------- Evolutions (1) 500 Regions Visited (5) 1000 Robots Destroyed (49) 245 Value Destroyed (898) 898 Prototype IDs (29) 580 Alien Tech Used (0) 0 Bonus (300) 300 TOTAL SCORE: 3523 Bonus ------- Aligned with FarCom 300 Cogmind --------- Core Integrity 0/400 Matter 261/300 Energy 100/100 System Corruption 0% Temperature Cool (206) Movement Core (1000) Ox19 Location -9/Exiles Parts ------- > --- POWER (1) -------- (None) > --- PROPULSION (2) --- (None) > --- UTILITY (3) ------ Improved Heat Sink Large Storage Unit High-capacity Storage Unit > --- WEAPON (3) ------- Guided Plasma Cannon > --- INVENTORY (18) --- Deuterium Engine Deuterium Engine Deuterium Engine Large Storage Unit Large Storage Unit High-capacity Battery (400) Experimental Sensor Array Improved Signal Interpreter Improved Terrain Scanner Improved Terrain Scanner Supersonic Drone Bay (1/1) Improved Medium Laser Improved Medium Laser Improved Medium Laser Rocket Launcher Rocket Launcher Rocket Launcher Rocket Launcher Peak State ------------ > --- POWER ------------ Deuterium Engine > --- PROPULSION ------- Light Treads Improved Treads > --- UTILITY ---------- Large Storage Unit Large Storage Unit High-capacity Storage Unit > --- WEAPON ----------- Guided Plasma Cannon Heavy Assault Rifle Great Maul > --- INVENTORY -------- Deuterium Engine Deuterium Engine Deuterium Engine Light Treads Light Treads Improved Heat Sink Large Storage Unit High-capacity Battery Superbattery High-capacity Matter Pod Experimental Sensor Array Improved Signal Interpreter Improved Terrain Scanner Improved Terrain Scanner Supersonic Drone Bay Improved Medium Laser Improved Medium Laser Improved Medium Laser Shotgun Rocket Launcher Rocket Launcher Rocket Launcher Rocket Launcher [Rating: 28] Favorites ----------- Power Deuterium Engine Engine Deuterium Engine Power Core Light Nuclear Core Propulsion Light Treads Treads Light Treads Wheel Wheel Flight Unit Improved Flight Unit Utility Large Storage Unit Device Improved Terrain Scanner Storage Large Storage Unit Protection Power Shielding Weapon Assault Rifle Energy Gun Improved Medium Laser Energy Cannon Guided Plasma Cannon Ballistic Gun Assault Rifle Ballistic Cannon Light Cannon Launcher Grenade Launcher Impact Weapon Great Maul Build | -11 -10 -10 -9 -9 -9 ------- Run | Scr Mat Min Mat Min Exi Slots Evolved 2 | . . . 2 . . Power . | . . . . . . Propulsion . | . . . . . . Utility 1 | . . . 1 . . Weapon 1 | . . . 1 . . Parts Attached 79 | 12 17 8 24 3 15 Power 9 | 2 2 1 4 . . Engine 5 | 2 . 1 2 . . Core 4 | . 2 . 2 . . Reactor . | . . . . . . Propulsion 31 | 6 12 3 7 . 3 Treads 17 | 1 6 3 4 . 3 Leg . | . . . . . . Wheel 13 | 5 6 . 2 . . Hover . | . . . . . . Flight 1 | . . . 1 . . Utility 13 | 2 3 . 5 . 3 Device 3 | 1 . . 1 . 1 Storage 9 | 1 3 . 3 . 2 Processor . | . . . . . . Hackware . | . . . . . . Protection 1 | . . . 1 . . Artifact . | . . . . . . Weapon 26 | 2 . 4 8 3 9 Energy Gun 2 | . . . 2 . . Energy Cannon 3 | . . . . . 3 Ballistic Gun 9 | 2 . 2 3 . 2 Ballistic Cannon 1 | . . 1 . . . Launcher 7 | . . 1 3 1 2 Special Weapon . | . . . . . . Impact Weapon 4 | . . . . 2 2 Slashing Weapon . | . . . . . . Piercing Weapon . | . . . . . . Special Melee Weapon . | . . . . . . Unidentified Prototypes 3 | . . . 2 . 1 Parts Lost 16 | . . 7 . . 9 Power 3 | . . 2 . . 1 Propulsion 7 | . . 3 . . 4 Utility . | . . . . . . Weapon 6 | . . 2 . . 4 Highest Loss Streak 6 | . . 6 . . 4 Average Slot Usage (%) 95 | . 99 91 94 100 90 Engine 6 | . 1 9 7 11 8 Core 4 | . 12 . 1 . . Treads 18 | . 19 21 15 22 19 Wheel 4 | . 8 4 4 . . Device 1 | . 4 . 1 . . Storage 28 | . 24 28 27 33 32 Ballistic Gun 20 | . 28 14 17 22 16 Launcher 4 | . . 8 11 6 . Impact Weapon 2 | . . . . 4 9 Naked Turns . | . . . . . . Heaviest Build 89 | 14 57 59 82 83 89 Greatest Support 43 | 26 40 40 43 40 43 Greatest Overweight (x) 24 | 1 5 5 4 2 24 Average Overweight (x) 1 | . 2 2 1 2 2 Largest Inventory Capacity 24 | 6 18 18 24 24 24 Average Capacity 18 | 5 14 18 20 24 23 Most Carried 24 | 6 18 18 24 24 24 Average Carried 17 | 4 13 17 19 24 22 Final Capacity 24 | 6 18 18 24 24 18 Final Carried 24 | 6 18 15 24 24 18 Class Distribution -------------------- 55% | Mutant 44% | Hauler-Mutant Dominant Class ---------------- Mutant | -10/Materials Mutant | -10/Mines Hauler-Mutant | -9/Materials Hauler-Mutant | -9/Mines Hauler-Mutant | -9/Exiles Resources | -11 -10 -10 -9 -9 -9 ----------- Run | Scr Mat Min Mat Min Exi Matter Collected 2116 | 320 656 143 697 . 300 Remotely . | . . . . . . Salvage Created 1480 | 102 570 105 665 23 15 Parts 84 | 10 23 7 37 7 . Haulers Intercepted 5 | . 2 . 3 . . Recyclers Shooed 2 | . . . 2 . . Parts Field Recycled . | . . . . . . Retrieved Matter . | . . . . . . Parts Self-Destructed . | . . . . . . Prevented . | . . . . . . Kills | -11 -10 -10 -9 -9 -9 ------- Run | Scr Mat Min Mat Min Exi Combat Hostiles Destroyed 33 | . 10 4 6 6 7 Guns 17 | . 10 2 5 . . AOE 16 | . . 2 1 6 7 Classes Destroyed 10 | 2 2 1 4 . 1 Worker 3 | 1 . . 1 1 . Tunneler 4 | 4 . . . . . Hauler 5 | . 2 . 3 . . Recycler 3 | . . . 3 . . Operator 1 | . . . 1 . . Swarmer 8 | . . 2 . 6 . Grunt 13 | . 10 2 1 . . Brawler 1 | . . . 1 . . Sentry 4 | . . . 4 . . Assembled 7 | . . . . . 7 Best Kill Streak 7 | 3 5 2 4 7 7 Combat Bots Only 7 | . 5 2 3 6 7 Max Kills in Single Turn 3 | 1 1 2 1 3 2 Gunslinging . | . . . . . . Exploded 2 | . . 2 1 2 2 Melee . | . . . . . . Uniques/NPCs Destroyed . | . . . . . . Combat | -11 -10 -10 -9 -9 -9 -------- Run | Scr Mat Min Mat Min Exi Damage Taken 3430 | . 549 883 423 92 1483 Core 654 | . 128 111 53 6 356 Absorbed by Shields . | . . . . . . Core Remaining (%) 52 | 100 . 4 . . . Volleys Fired 152 | 8 46 18 43 10 27 Largest 2 | 2 2 2 2 1 2 Hottest 120 | 40 40 40 60 30 120 Shots Fired 232 | 16 92 28 58 10 28 Gun 197 | 16 92 26 53 . 10 Cannon 13 | . . 1 . . 12 Launcher 22 | . . 1 5 10 6 Special . | . . . . . . Kinetic 198 | 16 92 27 53 . 10 Thermal 12 | . . . . . 12 Explosive 22 | . . 1 5 10 6 Electromagnetic . | . . . . . . Robot Hit Streak 16 | 8 16 7 11 2 3 Robot Miss Streak 5 | 5 3 3 2 2 2 Penetration Max . | . . . . . . Secondary Targets . | . . . . . . Shots Hit Robots 180 | 10 65 18 44 5 38 Core Hits 100 | 5 27 10 28 8 22 Critical Hits 3 | . 1 . 1 . 1 Critical Kills 1 | . 1 . . . . Critical Parts Destroyed 1 | . . . 1 . . Melee Attacks 38 | . . . . 5 33 Impact 38 | . . . . 5 33 Slashing . | . . . . . . Piercing . | . . . . . . Sneak Attacks 1 | . . . . 1 . Combat Hostiles . | . . . . . . Follow-up Attacks . | . . . . . . Damage Inflicted 4117 | 143 793 294 803 483 1601 Guns 1977 | 143 793 222 674 . 145 Cannons 286 | . . 10 . . 276 Explosions 981 | . . 62 129 432 358 Melee 873 | . . . . 51 822 Ramming . | . . . . . . Kinetic 1987 | 143 793 232 674 . 145 Thermal 276 | . . . . . 276 Explosive 981 | . . 62 129 432 358 Electromagnetic . | . . . . . . Impact 873 | . . . . 51 822 Slashing . | . . . . . . Piercing . | . . . . . . Highest Corruption 6 | . 1 6 . . . Average Corruption 1 | . 1 1 . . . Corruption Purged . | . . . . . . Effects 5 | . 5 . . . . Energy Discharges 1 | . 1 . . . . Data Loss (minor) 2 | . 2 . . . . Targeting Errors 2 | . 2 . . . . Overload Shots . | . . . . . . Overflow Damage 62 | . . . . 36 26 Projectiles . | . . . . . . Explosions 15 | . . . . 15 . Melee 47 | . . . . 21 26 Knockbacks 1 | . . . . 1 . Impact 1 | . . . . 1 . Kinetic . | . . . . . . Secondary . | . . . . . . Self-Inflicted Damage 18 | . . . . 18 . Shots 1 | . . . . 1 . Rammed . | . . . . . . Targets Rammed . | . . . . . . Kicked . | . . . . . . Crushed . | . . . . . . Highest Temperature 254 | . 24 19 2 . 254 Average Temperature 52 | . 5 11 2 . 112 Received Heat Transfer 567 | . 312 132 123 . . Effects 1 | . . . . . 1 Interference 1 | . . . . . 1 Siege Activations . | . . . . . . Robots Corrupted . | . . . . . . Combat Hostiles . | . . . . . . Parts Fried . | . . . . . . Impact Corruptions 5 | . . . . 1 4 Robots Melted . | . . . . . . Combat Hostiles . | . . . . . . Parts Melted . | . . . . . . Heat Transferred 220 | . . . . . 220 Parts Sabotaged . | . . . . . . Parts Stolen . | . . . . . . Parts Stripped . | . . . . . . Power Chain Reactions . | . . . . . . Missiles Intercepted . | . . . . . . Alert | -11 -10 -10 -9 -9 -9 ------- Run | Scr Mat Min Mat Min Exi Peak Influence 212 | 25 191 100 202 212 . Initial 52 | . 16 5 15 52 . Average 101 | 9 108 78 97 158 . Maximum Alert Level 1 | . . . 1 1 . Low Security (%) 93 | 100 100 100 97 52 . Level 1 6 | . . . 2 47 . Level 2 . | . . . . . . Level 3 . | . . . . . . Level 4 . | . . . . . . Level 5 . | . . . . . . High Security . | . . . . . . Max Security . | . . . . . . Squads Dispatched 1 | . . . 1 . . Investigation . | . . . . . . Extermination . | . . . . . . Reinforcement 1 | . . . 1 . . Assault . | . . . . . . Garrison . | . . . . . . Intercept . | . . . . . . Construction Impeded . | . . . . . . Haulers Reinforced . | . . . . . . Stealth | -11 -10 -10 -9 -9 -9 --------- Run | Scr Mat Min Mat Min Exi Distress Signals 1 | . . . 1 . . Communications Jammed . | . . . . . . Distress Signals . | . . . . . . Times Spotted 71 | . 17 26 14 6 8 Peak Tracking Total 18 | . 4 18 3 3 9 Tactical Retreats 2 | . . 1 1 . . Traps | -11 -10 -10 -9 -9 -9 ------- Run | Scr Mat Min Mat Min Exi Traps Triggered 1 | . 1 . . . . Indirectly . | . . . . . . Trap Hack Attempts . | . . . . . . Triggered . | . . . . . . Disarmed . | . . . . . . Reprogrammed . | . . . . . . Reused . | . . . . . . Traps Extracted . | . . . . . . Installed . | . . . . . . Triggered . | . . . . . . Machines | -11 -10 -10 -9 -9 -9 ---------- Run | Scr Mat Min Mat Min Exi Machines Disabled 6 | . . . 1 1 4 Max in Single Turn 1 | . . . 1 1 1 Machines Sabotaged . | . . . . . . Garrisons Compromised . | . . . . . . Overloaded Fab Kills . | . . . . . . Fab Network Shutdowns . | . . . . . . Hacking | -11 -10 -10 -9 -9 -9 --------- Run | Scr Mat Min Mat Min Exi Machines Accessed 14 | . 7 . 3 . 4 Terminals 6 | . 5 . 1 . . Fabricators . | . . . . . . Repair Stations 2 | . 1 . 1 . . Recycling Units 1 | . 1 . . . . Scanalyzers 1 | . . . 1 . . Garrison Access . | . . . . . . Total Hacks 58 | . 24 . 7 . 27 Successful 43 | . 13 . 3 . 27 Failed 15 | . 11 . 4 . . Catastrophic 2 | . . . 2 . . Database Lockouts . | . . . . . . Manual 17 | . 14 . 2 . 1 Terminals 21 | . 19 . 2 . . Fabricators . | . . . . . . Repair Stations 5 | . 2 . 3 . . Recycling Units 3 | . 3 . . . . Scanalyzers 2 | . . . 2 . . Garrison Access . | . . . . . . Terminal Hacks 36 | . 8 . 1 . 27 Record 26 | . . . . . 26 Part Schematic 3 | . 3 . . . . Prototype ID Bank 2 | . 2 . . . . Terminal Index 2 | . 1 . 1 . . Recycling Unit Index 1 | . 1 . . . . Alert Level 1 | . 1 . . . . EX-Prototype ID Bank 1 | . . . . . 1 Fabricator Hacks . | . . . . . . Repair Station Hacks 2 | . 2 . . . . Scan Component 1 | . 1 . . . . Repair 1 | . 1 . . . . Recycling Unit Hacks 2 | . 2 . . . . Report Inventory 1 | . 1 . . . . Retrieve Components 1 | . 1 . . . . Scanalyzer 2 | . . . 2 . . Insert Component 1 | . . . 1 . . Analyze 1 | . . . 1 . . Garrison Access Hacks . | . . . . . . Unauthorized Hacks 1 | . 1 . . . . Terminals 1 | . 1 . . . . Track 1 | . 1 . . . . Fabricators . | . . . . . . Repair Stations . | . . . . . . Recycling Units . | . . . . . . Scanalyzers . | . . . . . . Garrison Access . | . . . . . . Data Cores Recovered 1 | . . . 1 . . Used 1 | . . . 1 . . Hacking Detections 10 | . 7 . 3 . . Full Trace Events . | . . . . . . Feedback Events . | . . . . . . Feedback Blocked . | . . . . . . Robot Schematics Acquired . | . . . . . . Robots Built . | . . . . . . Matter . | . . . . . . Time . | . . . . . . Total Robot Build Rating . | . . . . . . Part Schematics Acquired 4 | . 3 . 1 . . Parts Built . | . . . . . . Matter . | . . . . . . Time . | . . . . . . Total Part Build Rating . | . . . . . . Parts Repaired 1 | . 1 . . . . Time 38 | . 38 . . . . Parts Recycled . | . . . . . . Recycled Matter . | . . . . . . Retrieved Matter . | . . . . . . Retrieved Components 9 | . 9 . . . . Parts Scanalyzed 1 | . . . 1 . . Part Schematics Acquired 1 | . . . 1 . . Parts Damaged . | . . . . . . Bothacking | -11 -10 -10 -9 -9 -9 ------------ Run | Scr Mat Min Mat Min Exi Used RIF Installer . | . . . . . . Robots Hacked . | . . . . . . Non-combat . | . . . . . . Combat . | . . . . . . Robot Hacks Applied . | . . . . . . Relay Couplers Released . | . . . . . . Robots Rewired . | . . . . . . Allies Hacked . | . . . . . . Hacks Repelled . | . . . . . . Allies | -11 -10 -10 -9 -9 -9 -------- Run | Scr Mat Min Mat Min Exi Total Allies . | . . . . . . Largest Group . | . . . . . . Highest-Rated Group . | . . . . . . Highest-Rated Ally . | . . . . . . Total Orders . | . . . . . . Ally Attacks . | . . . . . . Total Damage . | . . . . . . Kills . | . . . . . . Allies Corrupted . | . . . . . . Allies Melted . | . . . . . . Intel | -11 -10 -10 -9 -9 -9 ------- Run | Scr Mat Min Mat Min Exi Robot Analysis Total . | . . . . . . Derelict Logs Recovered . | . . . . . . Drone Launches . | . . . . . . Drone Recoveries . | . . . . . . Exploration | -11 -10 -10 -9 -9 -9 ------------- Run | Scr Mat Min Mat Min Exi Turns Passed 2910 | 145 840 255 774 288 608 Spaces Moved 1324 | 113 416 118 349 125 203 Core 27 | 26 . . . . 1 Treads 796 | . 153 80 236 125 202 Legs . | . . . . . . Wheels 501 | 87 263 38 113 . . Hover . | . . . . . . Flight . | . . . . . . Fastest Speed 50 | 50 90 130 110 200 180 Average Speed 159 | 81 137 166 170 200 203 Slowest Speed 1250 | 100 180 200 220 200 1250 Overloaded Moves . | . . . . . . Propulsion Burnouts . | . . . . . . Robots Hopped . | . . . . . . Cave-ins Triggered . | . . . . . . Exploration Rate (%) 35 | 4 59 41 31 30 46 Regions Visited 5 Branch Regions 3 Pre-discovered Areas . | . . . . . . Known Exits Taken . | . . . . . . Unknown Exits Taken 5 | 1 1 1 1 1 . Scrap Searched 1 | . . 1 . . . Spaces Dug 8 | . . . . 8 . Terrain Destroyed 96 | . . 4 17 66 9 Melee . | . . . . . . Projectile . | . . . . . . AOE 96 | . . 4 17 66 9 Terrain Rammed . | . . . . . . Walls Destroyed . | . . . . . . Machines Disabled . | . . . . . . Actions | -11 -10 -10 -9 -9 -9 --------- Run | Scr Mat Min Mat Min Exi Total 1814 | 147 595 149 473 142 308 Wait 96 | 2 75 2 13 . 4 Move 1319 | 112 415 117 348 124 203 Hop . | . . . . . . Pick Up 67 | 8 23 2 23 . 11 Fast Attach 23 | 8 5 1 8 . 1 Attach 20 | 1 2 5 6 . 6 Detach 7 | 1 1 . 4 . 1 Swap 36 | 3 10 2 10 3 8 Drop 56 | 4 18 2 18 . 14 Fire 152 | 8 46 18 43 10 27 Melee 38 | . . . . 5 33 Ram . | . . . . . . Kick . | . . . . . . Crush . | . . . . . . Escape Stasis . | . . . . . . Rewire . | . . . . . . Trap . | . . . . . . Miscellaneous . | . . . . . . Route ------- -11/Scrapyard -10/Materials (discovered 3 exits: *Mat x2 / [*Min]) -10/Mines -9/Materials (discovered 2 exits: [*Min] / [*Sto]) -9/Mines (discovered 2 exits: [*Mat] / *Exi) -9/Exiles History --------- Turn | Location | Event 5 | -11/Scrapyard | Discovered new exit (range 14) 146 | -11/Scrapyard | Entered Materials 218 | -10/Materials | Discovered new exit (range 10) 294 | -10/Materials | Discovered new exit (range 16) 314 | -10/Materials | Build established: Mutant 340 | -10/Materials | Repaired Lgt. Nuclear Core 368 | -10/Materials | Discovered new exit (range 16) 836 | -10/Materials | Core integrity fell below 50% 986 | -10/Materials | Entered Mines 1164 | -10/Mines | Found a damaged Exp. Sensor Array with a note attached 1169 | -10/Mines | Found Prototype Device 1183 | -10/Mines | Assembled infested the area 1188 | -10/Mines | Assisted by a Guerilla fighting off Assembled 1207 | -10/Mines | Core integrity fell below 20% 1222 | -10/Mines | Discovered new exit (range 9) 1241 | -10/Mines | Entered Materials 1241 | -9/Materials | Evolved 2 slots: Utility x1, Weapon x1 1266 | -9/Materials | Lost 6 parts (1p3n2w) 1402 | -9/Materials | Identified Exp. Sensor Array 1448 | -9/Materials | Discovered new exit (range 15) 1659 | -9/Materials | Discovered new exit (range 14) 1912 | -9/Materials | Build established: Hauler-Mutant 2015 | -9/Materials | Entered Mines 2059 | -9/Mines | Discovered new exit (range 7) 2293 | -9/Mines | Deemed a non-threat by the Exiles lab entrance 2293 | -9/Mines | Discovered new exit (range 5) 2303 | -9/Mines | Entered Exiles 2353 | -9/Exiles | Met 8R-AWN 2385 | -9/Exiles | Met EX-HEX 2469 | -9/Exiles | Met EX-BIN 2501 | -9/Exiles | Aligned with FarCom system 2503 | -9/Exiles | Given EX-Vault access code 2587 | -9/Exiles | Opened EX-Vault 2597 | -9/Exiles | Found Prototype Storage 2600 | -9/Exiles | Identified Superbattery 2651 | -9/Exiles | Found Supersonic Drone Bay 2654 | -9/Exiles | Found Gui. Plasma Cannon 2685 | -9/Exiles | Attacked by the Exiles 2742 | -9/Exiles | Destroyed 7 combat bots 2825 | -9/Exiles | Lost 4 parts (1p2n1w) 2825 | -9/Exiles | Core integrity fell below 50% 2890 | -9/Exiles | Core integrity fell below 20% 2911 | -9/Exiles | Destroyed by 8R-AWN with 8R-AWN's Boregun Last Messages --------------- 02894_ HV Slug penetrates Earth. 02896_ Dropped Superbattery. 02897_ Extracted 25 energy. 02898_ Penetrated by HV Slug. 02898_ HV Slug penetrates Wall. 02898_ HV Slug penetrates Earth. 02899_ Extracted 25 energy. 02901_ Extracted 26 energy. 02902_ Penetrated by HV Slug. 02902_ HV Slug penetrates Wall. 02902_ Penetrated by HV Slug. 02902_ HV Slug penetrates Wall. 02903_ Extracted 26 energy. 02906_ Penetrated by HV Slug. 02906_ HV Slug penetrates Wall. 02906_ HV Slug penetrates Earth. 02907_ Extracted 26 energy. 02911_ Penetrated by HV Slug. 02911_ HV Slug penetrates Wall. 02911_ Penetrated by HV Slug. Map ----- +----------------------------------------------------+ | | | | | | | | | | | | | | | | | | | | | | | ????????????????#########????????????????????????? | | ????????????????# #????????????????????????? | | ????????????????# #????????????????????????? | | ????????????????# ]/ #????????????????????????? | | ????????????????# ! X#????????????????????????? | | ????????????????## ##????????????????????????? | | ????????????????#X #?????????????????????????? | | ????????????????## #?????????????????????????? | | ?????????????????# #?????????????????????????? | | ?????????????????# #########?????????????????? | | ?????????????????# ##" ""#?????????????????? | | ?????????????????# ## #?????????????????? | | ?????????????????# g X""#?????????????????? | | ?????????????????# #;! #?????????????????? | | ?????????######### ##@ #?????????????????? | | ?????????#""""""## ##;;;;###?????????????????? | | ?????????#"""" ## # # # #?????????????????? | | ?????????#""X" ##? # ##?????????????????? | | ?????????#" #??# ## ?????????????????? | | ?????????#" ## #??? ?# ????????????????? | | ?????????#""""""## #?#######"#???????????????? | | ?????????##"##### #?#""""""""#??????????????? | | ????????? "????# % ?#"""""""# ??????????????? | | ????????"""?????# ?#"""""""#? ?????????????? | | ???????#"""?????## #"" """"#?? ????????????? | | ????????????????#" """"#???????????????? | | ????????????????# """#???????????????? | | ????????????????#" """#???????????????? | | ????????????????# """#???????????????? | | ????????????????# """#???????????????? | | ????????????????# """##??????????????? | | ????????????????## """""??????????????? | | ?????????????????# """##??????????????? | | ?????????????????#" "X" """""??????????????? | | ?????????????????#" """ #???????????????? | | ?????????????????#" """""""""#???????????????? | | ????????????????##" ###########???????????????? | | ???????????????##"" #?????????????????????????? | | ??????????######"" #?????????????????????????? | +----------------------------------------------------+ Best States ------------- Heat Dissipation 42 Energy Generation 14 Energy Capacity 275 Matter Stores 300 Matter Capacity 300 Sight Range 16 Terrain Scan Range 16 Terrain Scan Density 10 Power Shielding 33 Evasion (%) 50 Recoil Reduction 2 Item Schematics ----------------- Hcp. Storage Unit | -10/Materials | Hacked Grenade Launcher | -10/Materials | Hacked Hcp. Matter Pod | -10/Materials | Hacked Exp. Sensor Array | -9/Materials | Scanalyzed Robot Schematics ------------------ None Fabricated ------------ Nothing Alien Tech Used ----------------- None Achievements -------------- None Challenges ------------ None Game ------ Seed ThiefRocketManipulator Manual? 0 Play Time 00:49:07 Cumulative 116.4 hours Start 2020.09.17 @ 15:15:38 End 2020.09.18 @ 15:32:53 Sessions 2 Manual Loads 0 Difficulty Rogue Special Mode None Game No. 72 Rogue 72 Adventurer 0 Explorer 0 Win Type - Total 2 Types 2/0/0/0/0/0/0/0/0 Lore% 33 Gallery% 53 Achievement% 42 Wizard Run 0 Options --------- ASCII 0 Keyboard 0 Movement Mouse Keybinds 0 Fullscreen 2 Font 18/TerminusBold Map View 76x50 Tactical HUD 1 Map Filters NONE Filters NONE Steam 1 RUN: d9c42e4b-92fb-4485-ad2c-917c1900436e